Cogmind - Beta 10.2 @@@ ROGUE MODE // 2021.05.01 @ 19:21:23 Player: thingamajigger Result: Destroyed by G-47 Trooper with Particle Gun Performance ------------- Evolutions (1) 500 Regions Visited (2) 400 Robots Destroyed (23) 115 Value Destroyed (504) 504 Prototype IDs (0) 0 Alien Tech Used (0) 0 Bonus (0) 0 TOTAL SCORE: 1519 Bonus ------- None Cogmind --------- Core Integrity 0/400 Matter 251/300 Energy 100/100 System Corruption 2% Temperature Cool (9) Movement Core (1100) Ox21 Location -9/Materials Parts ------- > --- POWER (1) -------- (None) > --- PROPULSION (2) --- (None) > --- UTILITY (4) ------ High-capacity Storage Unit High-capacity Storage Unit Signal Interpreter > --- WEAPON (2) ------- (None) > --- INVENTORY (20) --- Ion Engine Transmission Jammer Peak State ------------ > --- POWER ------------ Light Ion Engine > --- PROPULSION ------- Light Treads Light Treads > --- UTILITY ---------- High-capacity Storage Unit High-capacity Storage Unit Advanced Visual Processing Unit Transmission Jammer > --- WEAPON ----------- EM Pulse Gun EM Pulse Gun > --- INVENTORY -------- Ion Engine Signal Interpreter EM Pulse Gun Assault Rifle Grenade Launcher [Rating: 13] Favorites ----------- Power Light Ion Engine Engine Light Ion Engine Propulsion Light Treads Treads Light Treads Leg Aluminum Leg Utility High-capacity Storage Unit Device Improved Sensor Array Storage High-capacity Storage Unit Processor Signal Interpreter Weapon EM Pulse Gun Energy Gun EM Pulse Gun Ballistic Gun Assault Rifle Launcher Grenade Launcher Build | -11 -10 -9 ------- Run | Scr Mat Mat Slots Evolved 2 | . . 2 Power . | . . . Propulsion . | . . . Utility 2 | . . 2 Weapon . | . . . Parts Attached 22 | 6 5 11 Power 2 | 1 . 1 Engine 2 | 1 . 1 Core . | . . . Reactor . | . . . Propulsion 3 | 2 . 1 Treads 2 | 2 . . Leg 1 | . . 1 Wheel . | . . . Hover . | . . . Flight . | . . . Utility 7 | 1 2 4 Device 2 | . . 2 Storage 3 | 1 2 . Processor 2 | . . 2 Hackware . | . . . Protection . | . . . Artifact . | . . . Weapon 10 | 2 3 5 Energy Gun 7 | 2 3 2 Energy Cannon . | . . . Ballistic Gun 1 | . . 1 Ballistic Cannon . | . . . Launcher 2 | . . 2 Special Weapon . | . . . Impact Weapon . | . . . Slashing Weapon . | . . . Piercing Weapon . | . . . Special Melee Weapon . | . . . Unidentified Prototypes . | . . . Parts Lost 14 | . 3 11 Power 2 | . . 2 Propulsion 3 | . . 3 Utility 1 | . . 1 Weapon 8 | . 3 5 Highest Loss Streak 5 | . 3 5 Average Slot Usage (%) 77 | . 96 73 Engine 6 | . 14 4 Treads 10 | . 28 7 Leg 1 | . . 1 Device 8 | . . 10 Storage 22 | . 25 22 Processor 8 | . . 10 Energy Gun 9 | . 27 5 Ballistic Gun 2 | . . 3 Launcher 5 | . . 7 Naked Turns . | . . . Heaviest Build 75 | 11 71 75 Greatest Support 40 | 40 40 40 Greatest Overweight (x) 23 | 2 1 23 Average Overweight (x) 3 | . . 6 Largest Inventory Capacity 20 | 6 20 20 Average Capacity 18 | 5 17 20 Most Carried 8 | 2 8 5 Average Carried 3 | 1 6 2 Final Capacity 20 | 6 20 20 Final Carried 5 | 2 5 2 Class Distribution -------------------- 87% | Hauler-Mutant 12% | Mutant Dominant Class ---------------- Hauler-Mutant | -10/Materials Hauler-Mutant | -9/Materials Resources | -11 -10 -9 ----------- Run | Scr Mat Mat Matter Collected 448 | 260 20 168 Remotely . | . . . Salvage Created 685 | 139 251 295 Parts 40 | 11 14 15 Haulers Intercepted . | . . . Recyclers Shooed . | . . . Parts Field Recycled . | . . . Retrieved Matter . | . . . Parts Self-Destructed . | . . . Prevented . | . . . Kills | -11 -10 -9 ------- Run | Scr Mat Mat Combat Hostiles Destroyed 16 | . 7 9 Guns 12 | . 7 5 AOE 3 | . . 3 Classes Destroyed 7 | 2 3 2 Worker 1 | . . 1 Tunneler 4 | 4 . . Recycler 1 | 1 . . Watcher 1 | . 1 . Swarmer 6 | . 3 3 Grunt 9 | . 4 5 Duelist 1 | . . 1 Best Kill Streak 5 | 5 2 4 Combat Bots Only 3 | . 2 3 Max Kills in Single Turn 2 | 2 1 1 Gunslinging . | . . . Exploded 1 | . . 1 Melee . | . . . Uniques/NPCs Destroyed . | . . . Combat | -11 -10 -9 -------- Run | Scr Mat Mat Damage Taken 1731 | 30 430 1271 Core 509 | 15 85 409 Absorbed by Shields . | . . . Core Remaining (%) 77 | 94 60 . Volleys Fired 49 | 6 14 29 Largest 2 | 2 2 2 Hottest 80 | 80 80 80 Shots Fired 84 | 12 28 44 Gun 74 | 12 28 34 Cannon . | . . . Launcher 10 | . . 10 Special . | . . . Kinetic 14 | . . 14 Thermal . | . . . Explosive 10 | . . 10 Electromagnetic 60 | 12 28 20 Robot Hit Streak 23 | 5 13 23 Robot Miss Streak 2 | 2 2 2 Penetration Max . | . . . Secondary Targets 2 | . . 2 Max Gunslinging Chain 1 | . . 1 Shots Hit Robots 61 | 8 20 33 Core Hits 36 | 5 12 19 Critical Hits 1 | . . 1 Critical Kills . | . . . Critical Parts Destroyed 1 | . . 1 Melee Attacks . | . . . Impact . | . . . Slashing . | . . . Piercing . | . . . Sneak Attacks . | . . . Combat Hostiles . | . . . Follow-up Attacks . | . . . Damage Inflicted 1438 | 221 327 890 Guns 731 | 109 279 343 Cannons . | . . . Explosions 707 | 112 48 547 Melee . | . . . Ramming . | . . . Kinetic 128 | . . 128 Thermal 230 | 112 48 70 Explosive 477 | . . 477 Electromagnetic 603 | 109 279 215 Impact . | . . . Slashing . | . . . Piercing . | . . . Highest Corruption 2 | . . 2 Average Corruption 1 | . . 1 Corruption Purged . | . . . Effects 4 | . . 4 Energy Discharges 1 | . . 1 Data Loss (minor) 3 | . . 3 Overload Shots . | . . . Overflow Damage 116 | . . 116 Projectiles . | . . . Explosions 116 | . . 116 Melee . | . . . Knockbacks . | . . . Impact . | . . . Kinetic . | . . . Secondary . | . . . Self-Inflicted Damage 295 | 30 14 251 Shots 9 | 1 1 7 Rammed . | . . . Targets Rammed . | . . . Kicked . | . . . Crushed . | . . . Highest Temperature 120 | 120 72 10 Average Temperature 36 | 62 31 4 Received Heat Transfer 471 | . 66 405 Siege Activations . | . . . Robots Corrupted 1 | . . 1 Combat Hostiles 1 | . . 1 Parts Fried 2 | . . 2 Impact Corruptions . | . . . Robots Melted . | . . . Combat Hostiles . | . . . Parts Melted . | . . . Heat Transferred 350 | 150 100 100 Parts Sabotaged . | . . . Parts Stolen . | . . . Parts Stripped . | . . . Power Chain Reactions 5 | 2 2 1 Missiles Intercepted . | . . . Alert | -11 -10 -9 ------- Run | Scr Mat Mat Peak Influence 236 | 25 188 236 Initial 79 | . 16 79 Average 70 | 12 73 77 Maximum Alert Level 1 | . . 1 Low Security (%) 85 | 100 100 80 Level 1 14 | . . 19 Level 2 . | . . . Level 3 . | . . . Level 4 . | . . . Level 5 . | . . . High Security . | . . . Max Security . | . . . Squads Dispatched 3 | . 1 2 Investigation 2 | . 1 1 Extermination . | . . . Reinforcement 1 | . . 1 Assault . | . . . Garrison . | . . . Intercept . | . . . Construction Impeded . | . . . Haulers Reinforced . | . . . Stealth | -11 -10 -9 --------- Run | Scr Mat Mat Distress Signals 3 | . 2 1 Communications Jammed . | . . . Distress Signals . | . . . Times Spotted 28 | . 10 18 Peak Tracking Total 6 | . 5 6 Tactical Retreats 3 | . . 3 Traps | -11 -10 -9 ------- Run | Scr Mat Mat Traps Triggered 2 | . 1 1 Indirectly . | . . . Trap Hack Attempts . | . . . Triggered . | . . . Disarmed . | . . . Reprogrammed . | . . . Reused . | . . . Traps Extracted . | . . . Installed . | . . . Triggered 1 | . . 1 Machines | -11 -10 -9 ---------- Run | Scr Mat Mat Machines Disabled 4 | . 1 3 Max in Single Turn 2 | . 1 2 Machines Sabotaged . | . . . Garrisons Compromised . | . . . Overloaded Fab Kills . | . . . Fab Network Shutdowns . | . . . Hacking | -11 -10 -9 --------- Run | Scr Mat Mat Machines Accessed 4 | . 2 2 Terminals 3 | . 2 1 Fabricators . | . . . Repair Stations . | . . . Recycling Units . | . . . Scanalyzers 1 | . . 1 Garrison Access . | . . . Total Hacks 16 | . 7 9 Successful 10 | . 3 7 Failed 6 | . 4 2 Catastrophic 1 | . 1 . Database Lockouts . | . . . Manual 9 | . 6 3 Terminals 13 | . 7 6 Fabricators . | . . . Repair Stations . | . . . Recycling Units . | . . . Scanalyzers 3 | . . 3 Garrison Access . | . . . Terminal Hacks 5 | . 2 3 Branch Access Points 1 | . . 1 Terminal Index 2 | . 1 1 Locate Traps 1 | . . 1 Zone Layout 1 | . 1 . Fabricator Hacks . | . . . Repair Station Hacks . | . . . Recycling Unit Hacks . | . . . Scanalyzer 3 | . . 3 Insert Component 2 | . . 2 Analyze 1 | . . 1 Garrison Access Hacks . | . . . Unauthorized Hacks 2 | . 1 1 Terminals 2 | . 1 1 Botnet 2 | . 1 1 Fabricators . | . . . Repair Stations . | . . . Recycling Units . | . . . Scanalyzers . | . . . Garrison Access . | . . . Data Cores Recovered . | . . . Used . | . . . Hacking Detections 4 | . 2 2 Full Trace Events 1 | . . 1 Feedback Events 1 | . . 1 Corruption 1 | . . 1 Feedback Blocked . | . . . Robot Schematics Acquired . | . . . Robots Built . | . . . Matter . | . . . Time . | . . . Total Robot Build Rating . | . . . Part Schematics Acquired 1 | . . 1 Parts Built . | . . . Matter . | . . . Time . | . . . Total Part Build Rating . | . . . Parts Repaired . | . . . Time . | . . . Parts Recycled . | . . . Recycled Matter . | . . . Retrieved Matter . | . . . Retrieved Components . | . . . Parts Scanalyzed 1 | . . 1 Part Schematics Acquired 1 | . . 1 Parts Damaged . | . . . Bothacking | -11 -10 -9 ------------ Run | Scr Mat Mat Used RIF Installer . | . . . Robots Hacked . | . . . Non-combat . | . . . Combat . | . . . Robot Hacks Applied . | . . . Relay Couplers Released . | . . . Robots Rewired . | . . . Allies Hacked . | . . . Hacks Repelled . | . . . Allies | -11 -10 -9 -------- Run | Scr Mat Mat Total Allies . | . . . Largest Group . | . . . Highest-Rated Group . | . . . Highest-Rated Ally . | . . . Total Orders . | . . . Ally Attacks . | . . . Total Damage . | . . . Kills . | . . . Allies Corrupted . | . . . Allies Melted . | . . . Intel | -11 -10 -9 ------- Run | Scr Mat Mat Robot Analysis Total . | . . . Derelict Logs Recovered . | . . . Drone Launches . | . . . Drone Recoveries . | . . . Exploration | -11 -10 -9 ------------- Run | Scr Mat Mat Turns Passed 1440 | 141 240 1059 Spaces Moved 409 | 76 90 243 Core 63 | 13 . 50 Treads 310 | 63 90 157 Legs 36 | . . 36 Wheels . | . . . Hover . | . . . Flight . | . . . Fastest Speed 50 | 50 160 180 Average Speed 305 | 149 175 402 Slowest Speed 1200 | 160 180 1200 Overloaded Moves . | . . . Propulsion Burnouts . | . . . Robots Hopped . | . . . Cave-ins Triggered . | . . . Exploration Rate (%) 16 | 4 17 27 Regions Visited 2 Branch Regions . Pre-discovered Areas . | . . . Known Exits Taken . | . . . Unknown Exits Taken 2 | 1 1 . Scrap Searched . | . . . Spaces Dug 26 | . . 26 Terrain Destroyed 107 | 6 10 91 Melee . | . . . Projectile . | . . . AOE 107 | 6 10 91 Terrain Rammed . | . . . Walls Destroyed . | . . . Machines Disabled . | . . . Actions | -11 -10 -9 --------- Run | Scr Mat Mat Total 519 | 89 144 286 Wait 29 | . 29 . Move 407 | 75 89 243 Hop . | . . . Pick Up 8 | 2 6 . Fast Attach 12 | 6 1 5 Attach 8 | . 3 5 Detach 3 | . . 3 Swap 2 | . 1 1 Drop 1 | . 1 . Fire 49 | 6 14 29 Melee . | . . . Ram . | . . . Kick . | . . . Crush . | . . . Escape Stasis . | . . . Rewire . | . . . Trap . | . . . Miscellaneous . | . . . Route ------- -11/Scrapyard -10/Materials (discovered 2 exits: *Mat / [*Min]) -9/Materials (discovered 1 exit: Min) History --------- Turn | Location | Event 15 | -11/Scrapyard | Discovered new exit (range 15) 142 | -11/Scrapyard | Entered Materials 218 | -10/Materials | Discovered new exit (range 14) 337 | -10/Materials | Discovered new exit (range 14) 382 | -10/Materials | Entered another Materials area 382 | -9/Materials | Evolved 2 slots: Utility x2 384 | -9/Materials | Lost 3 parts (3w) 484 | -9/Materials | Build established: Hauler-Mutant 609 | -9/Materials | Identified exit to Mines 757 | -9/Materials | Lost 4 parts (1p2n1w) 1423 | -9/Materials | Core integrity fell below 50% 1437 | -9/Materials | Core integrity fell below 20% 1441 | -9/Materials | Destroyed by G-47 Trooper with Particle Gun Last Messages --------------- 01408_ K-01 Serf collects debris. 01409_ G-34 Mercenary destroyed. 01411_ K-01 Serf destroyed. 01412_ Grenade Launcher destroyed. 01412_ K-01 Serf collects debris. 01416_ Aluminum Leg destroyed. 01416_ Acquired 6 matter. 01416_ K-01 Serf collects debris. 01425_ U-05 Engineer lays Concrete. 01426_ Ion Engine destroyed. 01428_ K-01 Serf collects debris. 01429_ U-05 Engineer lays Concrete. 01431_ The unstable cave ceiling collapses. 01431_ U-05 Engineer lays Concrete. 01432_ K-01 Serf collects debris. 01433_ U-05 Engineer builds a Wall. 01433_ Imp. Sensor Array destroyed. 01433_ K-01 Serf collects debris. 01437_ U-05 Engineer lays Concrete. 01439_ U-05 Engineer builds a Wall. Map ----- +----------------------------------------------------+ | ?????????????????????????????????????????????????? | | ?????????????????????????????????????????????????? | | ?????????????????????????????????????????????????? | | ?????????????????????????????????????????????????? | | ?????????????????????????????????????????????????? | | ?????????????????????????????????????????????????? | | ?????????????????????????????????????????????????? | | ?????????????????????????????????????????????????? | | ???????????????????????? ?????????????????????? | | ???????????????????????? ?????????????????????? | | ???????????????????????? ?????????????????????? | | ???????????????????????? #?????????????????????? | | ???????????????????????# #?????????????????????? | | ???????????????????????# #?????????????????????? | | ???????????????????????# #?????????????????????? | | ???????????????????????# #?????????????????????? | | ???????????????????????# #??#####??????????????? | | ???????????????????????# #? #??????????????? | | ???????????????????????# # = #??????????????? | | ???????????????????????# # ]||#??????????????? | | ??????????????########## + || #??????????????? | | ?######???????# k # ! || #??????????????? | | ?# """ ??????# = ! u# #??????????????? | | ?# """ ####### k#Y[ ########??????????????? | | ?# """ + + "" %kg= #????????????????????? | | ?# # ##### "" @a# ???????????????? | | ?# # #???# "" #???????????? | | ?# ! ?# #???# """"" #???????????? | | ?######?# #???# """ # # """ #???????????? | | ????????# #???# + # """ #???????????? | | ??####### #???########## g +?""" "T" #???????????? | | ?"""""" # #????????????#o # ????????????????? | | ?"""""" # ############## ag# ????????????????? | | ?"""""" # #?####????????????????? | | ?"""""" + #?????????????????????? | | ?"""""" # #?????????????????????? | | ^^ ###+###+#####+## #?????????????????????? | | ^ # #???? ## #?????????????????????? | | # #???? #? #?????????????????????? | | ######### #??? #? w#?????????????????????? | | ????????# "" #?? #? +?????????????????????? | | ????????# S"" #? #? ??????????????????????? | | ???????## "" ## #??????????????????????????? | | ?????############# #??????????????????????????? | | ?????## ## #??????????????????????????? | | ????### ## #??????????????????????????? | | ??### # #####????>???????????????????????? | | ??# # # #????????????????????????????? | | ??# + # #????????????????????????????? | | ??# # ## #????????????????????????????? | +----------------------------------------------------+ Best States ------------- Heat Dissipation 28 Energy Generation 10 Energy Capacity 250 Matter Stores 300 Matter Capacity 300 Sight Range 20 Robot Scan Range 13 Terrain Scan Density 10 Jamming Range 8 Evasion (%) 40 Recoil Reduction 2 Item Schematics ----------------- Grenade Launcher | -9/Materials | Scanalyzed Robot Schematics ------------------ None Fabricated ------------ Nothing Alien Tech Used ----------------- None Achievements -------------- None Challenges ------------ None Game ------ Seed SignalGyrokineticInterrupter Manual? 0 Play Time 00:07:50 Cumulative 47.4 hours Start 2021.05.01 @ 19:16:17 End 2021.05.01 @ 19:21:23 Sessions 1 Manual Loads 0 Difficulty Rogue Special Mode None Game No. 102 Rogue 91 Adventurer 4 Explorer 7 Win Type - Total 2 Types 2/0/0/0/0/0/0/0/0 Lore% 38 Gallery% 62 Achievement% 40 Wizard Run 0 Options --------- ASCII 0 Keyboard 1 Movement Numpad Keybinds 0 Fullscreen 1 Font 18/SmallcapsGlow Map View 76x50 Tactical HUD 1 Map Filters NONE Filters NONE Steam 1 RUN: 1a9eb955-6089-4187-91b6-c31e84862e7a